bitfinex-derivatives/quotes_SOLF0:USTF0_20250923
["timestamp","ask_amount","ask_price","bid_price","bid_amount"]
[1758669543122,5.22,215.47,215.4,3.89873758]
[1758669543919,4.1755,215.46,215.4,3.89873758]
[1758669544123,5.22,215.45,215.4,3.89873758]
[1758669544329,4.1755,215.46,215.4,3.89873758]
[1758669545327,5.22,215.45,215.39,8.07533758]
[1758669545724,9.3957,215.45,215.39,3.89873758]
[1758669546428,118.6157,215.45,215.39,3.89873758]
[1758669547330,114.44,215.45,215.39,3.89873758]
[1758669547731,128.52301619,215.45,215.39,3.89873758]
[1758669548734,123.30301619,215.45,215.4,4.1763]
[1758669549037,128.52301619,215.45,215.39,3.89873758]
[1758669549226,128.52301619,215.45,215.38,7.72]
[1758669549936,128.52301619,215.45,215.38,11.8969]
[1758669550638,19.30301619,215.45,215.38,11.8969]
[1758669550838,113.16,215.44,215.38,11.8969]
[1758669552336,113.16,215.44,215.39,4.1765]
[1758669552736,5.22,215.43,215.39,11.3965]
[1758669553037,113.16,215.44,215.39,11.3965]
[1758669553337,5.22,215.43,215.37,4.177]
[1758669553836,9.3961,215.43,215.37,4.177]
[1758669556636,10.71063212,215.43,215.36,3.89873758]
[1758669557137,10.71063212,215.43,215.35,15.29613758]
[1758669559738,5.22,215.42,215.35,15.29613758]
[1758669560843,5.22,215.39,215.3,7.22]
[1758669561043,5.22,215.37,215.3,7.22]
[1758669561843,1.16127846,215.36,215.3,11.3984]
[1758669562038,6.38127846,215.35,215.31,7.22]
[1758669562237,117.3571,215.38,215.31,7.22]
[1758669562438,6.38127846,215.37,215.31,7.22]
[1758669562638,1.16127846,215.36,215.31,7.22]
[1758669562834,6.38127846,215.35,215.31,7.22]
[1758669563040,5.22,215.35,215.31,7.22]
[1758669563544,5.22,215.35,215.3,4.1784]
[1758669563545,5.22,215.35,215.28,9.09453212]
[1758669564047,1.16133066,215.34,215.28,9.09453212]
[1758669564248,9.3976,215.35,215.28,9.09453212]
[1758669564945,9.3976,215.35,215.28,7.78]
[1758669568843,9.3976,215.35,215.28,11.9587]
[1758669569038,113.22,215.34,215.28,11.9587]
[1758669569641,1.31453212,215.32,215.25,7.78]
[1758669569845,5.22,215.31,215.25,7.78]
[1758669571939,9.3984,215.31,215.25,7.78]
[1758669573947,4.1787,215.29,215.25,7.78]
[1758669574153,5.22,215.28,215.25,7.78]
[1758669574453,5.22,215.28,215.22,7.78]
[1758669574753,9.399,215.28,215.22,7.78]
[1758669577248,5.22,215.27,215.14,7.78]
[1758669577450,10.94513212,215.2,215.09,3.89873758]
[1758669577655,5.45,215.18,215.07,4.1829]
[1758669577959,5.45,215.18,215.07,5.49743212]
[1758669578148,6.76453212,215.18,215.07,5.49743212]
[1758669578653,10.94553212,215.18,215.09,4.1825]
[1758669578851,24.98768695,215.18,215.09,4.1825]
[1758669579051,10.94553212,215.18,215.09,4.1825]
[1758669579253,1.16241092,215.17,215.09,4.1825]
[1758669579452,9.6312,215.17,215.1,7.78]
[1758669579648,6.76453212,215.15,215.05,7.78]
[1758669580147,5.45,215.15,215.05,7.78]
[1758669580349,1.31453212,215.14,215.05,7.78]
[1758669581256,5.45,215.17,215.07,7.78]
[1758669581556,13.90258956,215.18,215.07,7.78]
[1758669581557,5.45,215.15,215.07,7.78]
[1758669581757,1.31453212,215.13,215.07,7.78]
[1758669581960,6.76453212,215.13,215.07,7.78]
[1758669582252,5.45,215.11,215.03,4.1836]
[1758669582456,5.45,215.11,215.04,7.78]
[1758669587265,5.45,215.11,214.97,65.0982]
[1758669587266,2.06155084,215.15,215.05,7.78]
[1758669587461,5.45,215.13,215.05,7.78]
[1758669587767,5.45,215.11,215.05,7.78]
[1758669588360,70.4978,215.14,214.98,7.78]
[1758669588564,2.06155084,215.11,214.98,7.78]
[1758669588766,5.45,215.1,214.98,7.78]
[1758669588957,5.45,215.08,214.98,7.78]
[1758669589360,5.45,215.08,215.0,4.1841]
[1758669589566,5.45,215.08,215.01,7.78]
[1758669590973,1.16285406,215.07,215.01,7.78]
[1758669591167,5.45,215.08,215.01,7.78]
[1758669591471,1.16285406,215.07,215.01,7.78]
[1758669591672,5.45,215.08,215.01,7.78]
[1758669591872,1.16285828,215.07,215.01,7.78]
[1758669592171,5.45,215.05,215.01,7.78]
[1758669592471,5.45,215.05,214.97,7.78]
[1758669593061,5.45,215.05,214.98,4.1846]
[1758669593264,5.45,215.05,214.99,7.33]
[1758669593974,9.6529,215.08,214.99,7.33]
[1758669594171,1.162967,215.07,214.99,7.33]
[1758669594476,1.162967,215.06,214.99,7.33]
[1758669594675,52.26,215.09,215.02,11.5138]
[1758669594866,1.162889,215.08,215.02,11.5138]
[1758669595177,1.162889,215.07,215.03,7.33]
[1758669595374,1.162889,215.06,215.03,7.33]
[1758669595575,111.1,215.09,215.03,7.33]
[1758669595776,6.63288879,215.08,215.02,4.1838]
[1758669595980,1.16288879,215.07,215.03,7.33]
[1758669596275,1.16288879,215.06,215.03,7.33]
[1758669596468,5.47,215.08,215.02,11.5138]
[1758669596670,1.16288879,215.07,215.02,4.1838]
[1758669596864,1.16288879,215.06,215.03,7.33]
[1758669597067,5.47,215.08,215.02,11.5138]
[1758669597263,1.16285807,215.07,215.03,7.33]
[1758669597562,1.16285807,215.06,215.02,4.1838]
[1758669597765,5.47,215.08,215.02,11.5138]
[1758669597969,1.16285783,215.07,215.02,4.1838]
[1758669598163,1.16285783,215.06,215.02,4.1838]
[1758669598370,5.47,215.08,215.02,11.5138]
[1758669598673,1.16285783,215.07,215.0,7.33]
[1758669598862,43.16,215.11,215.0,7.33]
[1758669599368,43.16,215.11,215.04,11.5134]
[1758669600275,5.47,215.1,215.04,7.33]
[1758669600474,5.47,215.1,215.02,4.1839]
[1758669601771,9.6525,215.1,215.02,4.1839]
[1758669602178,9.6525,215.1,215.03,11.5135]
[1758669602179,5.47,215.1,215.03,11.5135]
[1758669602980,5.47,215.1,215.04,7.33]
[1758669603281,119.822,215.12,215.04,11.5133]
[1758669603479,1.16281014,215.11,215.04,11.5133]
[1758669603682,119.822,215.12,215.04,11.5133]
[1758669603883,1.16281014,215.11,215.04,11.5133]
[1758669604175,119.822,215.12,215.04,11.5133]
[1758669604378,5.47,215.1,215.04,11.5133]
[1758669604978,115.6,215.11,215.04,11.5133]
[1758669605280,1.16277942,215.1,215.04,11.5133]
[1758669605471,115.6,215.11,215.04,11.5133]
[1758669605675,1.16277942,215.1,215.04,11.5133]
[1758669605976,115.6,215.11,215.04,11.5133]
[1758669606378,1.16277942,215.1,215.04,7.33]
[1758669606682,121.07,215.11,215.04,7.33]
[1758669606980,1.16277942,215.1,215.04,7.33]
[1758669607180,4.1825,215.1,215.04,7.33]
[1758669607482,121.07,215.11,215.04,7.33]
[1758669607679,1.16277942,215.1,215.04,7.33]
[1758669607879,121.07,215.11,215.04,7.33]
[1758669608180,353.54155084,215.15,215.04,7.33]
[1758669608181,4.1816,215.14,215.04,7.33]
[1758669608377,116.80267074,215.13,215.04,7.33]
[1758669608576,1.16270132,215.12,215.04,7.33]
[1758669608779,1.16270132,215.11,215.04,7.33]
[1758669609084,115.64,215.13,215.04,7.33]
[1758669609385,5.47,215.11,215.04,7.33]
[1758669609586,1.16272495,215.1,215.04,7.33]
[1758669610780,4.1827,215.09,215.04,7.33]
[1758669610984,5.47,215.08,215.04,7.33]
[1758669611180,65.0566,215.11,214.96,7.33]
[1758669611389,121.13,215.07,214.99,7.33]
[1758669611580,1.16283539,215.06,214.99,7.33]
[1758669612587,6.60283539,215.06,214.98,7.03]
[1758669612885,5.44,215.06,214.98,7.03]
[1758669613786,9.6233,215.06,214.99,4.1845]
[1758669614390,1.16288575,215.05,214.99,4.1845]
[1758669614580,9.6233,215.06,214.99,4.1845]
[1758669614877,1.16288575,215.05,214.99,4.1845]
[1758669615082,9.6233,215.06,214.99,4.1845]
[1758669615289,1.16288575,215.05,214.99,4.1845]
[1758669615482,4.1834,215.05,214.98,7.03]
[1758669616176,5.34659403,215.04,214.98,7.03]
[1758669616382,4.1837,215.04,214.98,7.03]
[1758669617083,9.6232,215.06,214.98,11.2146]
[1758669617288,1.16288618,215.05,214.98,7.03]
[1758669617588,1.16288618,215.04,214.98,7.03]
[1758669617794,4.1834,215.05,214.98,7.03]
[1758669618089,1.16288618,215.04,214.98,7.03]
[1758669618289,4.1834,215.05,214.98,7.03]
[1758669618592,1.16288618,215.04,214.98,7.03]
[1758669618791,1.16292518,215.03,214.98,7.03]
[1758669618992,1.16292518,215.02,214.96,7.03]
[1758669619187,5.44,215.05,214.96,7.03]
[1758669619387,9.6245,215.0,214.96,7.03]
[1758669619690,1.16310611,214.99,214.93,7.03]
[1758669619991,5.44,215.0,214.93,7.03]
[1758669620389,1.1631638,214.99,214.93,7.03]
[1758669620694,5.44,215.0,214.93,7.03]
[1758669620992,4.1849,214.98,214.92,7.03]
[1758669622194,5.44,214.96,214.92,7.03]
[1758669622592,2.06155084,214.98,214.91,3.89873758]
[1758669622786,1.16325088,214.97,214.88,10.92873758]
[1758669622988,5.44,214.95,214.88,10.92873758]
[1758669623288,4.1858,214.93,214.88,7.03]
[1758669623488,5.48,214.92,214.88,7.03]
[1758669623683,1.1634258,214.91,214.88,7.03]
[1758669623889,5.48,214.92,214.88,7.03]
[1758669624095,1.1634873,214.91,214.88,7.03]
[1758669624393,5.48,214.92,214.88,7.03]
[1758669624596,1.1634873,214.91,214.88,7.03]
[1758669624790,5.48,214.92,214.88,7.03]
[1758669625494,120.74,214.92,214.88,7.03]
[1758669625984,134.76704214,214.92,214.88,7.03]
[1758669626390,115.22,214.93,214.87,11.44873758]
[1758669626789,115.22,214.93,214.87,7.55]
[1758669629697,14.15473921,214.93,214.87,7.55]
[1758669629899,115.16,214.94,214.87,11.7367]
[1758669631893,4.1851,214.96,214.89,4.1864]
[1758669632094,36.04,214.95,214.89,4.1864]
[1758669632700,4.1851,214.96,214.89,4.1864]
[1758669632899,63.34,214.95,214.89,4.1864]
[1758669633598,77.32323516,214.95,214.89,4.1864]
[1758669634994,13.98323516,214.95,214.89,11.7364]
[1758669635195,5.48,214.97,214.9,4.186]
[1758669636291,41.96,214.98,214.85,7.55]
[1758669636500,4.1852,214.96,214.85,7.55]
[1758669636799,5.48,214.95,214.85,7.55]
[1758669637497,19.5762434,214.95,214.85,7.55]
[1758669637703,5.48,214.95,214.85,7.55]
[1758669637901,5.48,214.95,214.87,4.1866]
[1758669638101,6.29008415,214.95,214.87,4.1866]
[1758669638602,6.29008415,214.95,214.88,4.1864]
[1758669639303,6.29008415,214.95,214.89,11.7362]
[1758669641102,0.81008415,214.95,214.89,4.1862]
[1758669641805,5.48,214.94,214.89,4.1862]
[1758669642307,0.81008415,214.95,214.89,4.1862]
[1758669642503,6.29008415,214.95,214.89,11.7362]
[1758669645707,20.03059356,214.95,214.89,11.7362]
[1758669648408,134.83059356,214.95,214.89,11.7362]
[1758669650402,134.83059356,214.95,214.89,7.55]
[1758669651410,139.01599356,214.95,214.89,7.55]
[1758669651709,5.48,214.93,214.85,11.7372]
[1758669652403,5.48,214.93,214.86,7.55]
[1758669652808,4.1859,214.92,214.86,7.55]
[1758669654907,14.55059356,214.95,214.86,7.55]
[1758669655108,14.55059356,214.95,214.89,7.72]
[1758669655805,5.48,214.99,214.92,7.72]
[1758669656005,57.28,214.98,214.92,7.72]
[1758669656209,0.8099239,214.98,214.92,7.72]
[1758669658014,4.9947239,214.98,214.92,7.72]
[1758669658914,0.8099239,214.98,214.92,7.72]
[1758669659814,0.8099239,214.98,214.93,4.1856]
[1758669660014,6.2899239,214.98,214.93,11.9056]
[1758669660214,15.09666475,214.98,214.93,11.9056]
[1758669660515,20.57666475,214.98,214.93,11.9056]
[1758669660811,15.09666475,214.98,214.9,4.1861]
[1758669661008,15.09666475,214.98,214.88,9.0414554]
[1758669661212,5.48,214.97,214.88,9.0414554]
[1758669661413,1.3214554,214.96,214.88,7.72]
[1758669662609,4.1854,214.95,214.88,7.72]
[1758669662817,5.48,214.95,214.88,7.72]
[1758669665816,9.6654,214.95,214.88,11.9065]
[1758669666121,5.48,214.95,214.88,7.72]
[1758669667422,4.1856,214.94,214.88,7.72]
[1758669668316,5.48,214.92,214.87,3.91028143]
[1758669668522,5.48,214.92,214.87,11.63028143]
[1758669668724,10.9872554,214.93,214.87,11.63028143]
[1758669668916,4.1861,214.91,214.87,11.63028143]
[1758669669117,2.48503968,214.9,214.86,3.91028143]
[1758669669322,1.3214554,214.9,214.86,3.91028143]
[1758669669623,1.3214554,214.9,214.85,3.91028143]
[1758669669624,5.48,214.88,214.85,3.91028143]
[1758669671525,5.48,214.88,214.85,11.63028143]
[1758669672025,5.48,214.87,214.84,3.91028143]
[1758669672328,1.3214554,214.9,214.84,3.91028143]
[1758669672329,6.8014554,214.9,214.84,7.57]
[1758669672523,6.64380792,214.89,214.84,7.57]
[1758669672824,6.64380792,214.88,214.83,3.91028143]
[1758669673022,5.48,214.88,214.84,7.57]
[1758669673227,5.48,214.88,214.82,3.91028143]
[1758669673527,4.187,214.87,214.82,3.91028143]
[1758669673727,4.187,214.87,214.83,7.57]
[1758669674129,9.6665,214.89,214.83,7.57]
[1758669674330,5.48,214.92,214.83,7.57]
[1758669674523,2.48517102,214.91,214.84,7.57]
[1758669674718,42.46371562,214.9,214.84,7.57]
[1758669674922,1.16371562,214.89,214.84,7.57]
[1758669675124,41.3,214.9,214.84,7.57]
[1758669675421,1.16371562,214.89,214.84,4.1873]
[1758669675626,41.3,214.9,214.84,11.7573]
[1758669675826,1.16371562,214.89,214.85,7.57]
[1758669676027,41.3,214.9,214.84,11.7573]
[1758669676028,46.78,214.9,214.84,11.7573]
[1758669676327,1.163731,214.89,214.84,4.1873]
[1758669676530,5.48,214.89,214.85,7.57]
[1758669676729,5.48,214.89,214.83,3.91028143]
[1758669676929,5.48,214.89,214.82,8.09808143]
[1758669677229,5.48,214.89,214.82,8.1041206]
[1758669677532,9.6666,214.89,214.82,8.1041206]
[1758669680038,1.16379253,214.88,214.82,8.1041206]
[1758669680233,9.6666,214.89,214.82,8.1041206]
[1758669680835,9.6666,214.89,214.83,4.1875]
[1758669681036,5.48,214.89,214.83,11.7575]
[1758669683141,123.8266,214.89,214.83,11.7575]
[1758669683342,9.6666,214.89,214.83,11.7575]
[1758669683542,123.8466,214.89,214.83,11.7575]
[1758669683743,4.1868,214.88,214.83,7.57]
[1758669683936,5.48,214.87,214.83,7.57]
[1758669684132,4.1868,214.88,214.83,7.57]
[1758669684732,5.48,214.87,214.83,7.57]
[1758669685339,5.48,214.87,214.81,8.1043206]
[1758669685738,5.48,214.87,214.82,4.1877]
[1758669685934,5.48,214.87,214.83,7.46]
[1758669687445,5.48,214.87,214.82,4.1877]
[1758669687641,5.5082554,214.88,214.82,11.6477]
[1758669687841,10.9882554,214.88,214.82,11.6477]
[1758669688035,10.9882554,214.88,214.82,7.46]
[1758669688440,4.187,214.87,214.82,7.46]
[1758669688738,5.48,214.86,214.82,7.46]
[1758669688938,4.187,214.87,214.82,7.46]
[1758669689146,5.48,214.86,214.82,7.46]
[1758669689841,4.187,214.87,214.82,7.46]
[1758669691040,5.48,214.86,214.82,7.46]
[1758669691847,119.52,214.86,214.82,7.46]
[1758669692039,6.8014554,214.85,214.79,3.9163206]
[1758669692242,5.48,214.81,214.73,11.3763206]
[1758669692439,115.18428366,214.8,214.73,7.46]
[1758669692638,4.1888,214.78,214.73,7.46]
[1758669692849,1.3214554,214.76,214.7,7.46]
[1758669693049,6.64458009,214.75,214.7,7.46]
[1758669693249,115.22458839,214.74,214.7,7.46]
[1758669693546,1.16458839,214.73,214.7,7.46]
[1758669693747,1.16458839,214.72,214.65,7.46]
[1758669693937,1.16458839,214.71,214.65,7.46]
[1758669694142,6.8014554,214.73,214.65,7.46]
[1758669694143,1.16458839,214.7,214.65,7.46]
[1758669694445,10.9912554,214.73,214.65,7.46]
[1758669694645,5.48,214.69,214.65,7.46]
[1758669695248,5.48,214.65,214.57,7.46]
[1758669695845,67.98,214.64,214.57,7.46]
[1758669696045,5.48,214.65,214.57,7.46]
[1758669696046,102.94,214.63,214.57,7.46]
[1758669696241,1.3214554,214.63,214.57,7.46]
[1758669696441,1.3214554,214.63,214.56,7.46]
[1758669696648,38.56,214.62,214.56,7.46]
[1758669696950,72.4,214.66,214.58,8.7814554]
[1758669697951,98.46,214.67,214.58,8.7814554]
[1758669698252,98.46,214.67,214.58,7.46]
[1758669698857,98.46,214.67,214.61,4.1919]
[1758669699355,98.46,214.67,214.58,11.6523]
[1758669699753,1.16518217,214.66,214.58,7.46]
[1758669699956,1.3214554,214.65,214.58,7.46]
[1758669701057,114.16,214.64,214.58,7.46]
[1758669702456,114.14,214.64,214.58,7.46]
[1758669705362,118.3313,214.64,214.58,7.46]
[1758669705760,4.1913,214.64,214.58,7.46]
[1758669705958,5.48,214.62,214.58,7.46]
[1758669706361,6.8014554,214.62,214.52,7.46]
[1758669706554,5.48,214.62,214.52,7.46]
[1758669706963,4.1919,214.61,214.53,4.1935]
[1758669707758,5.48,214.6,214.53,4.1935]
[1758669707963,9.6723,214.6,214.52,7.46]
[1758669708166,4.1923,214.6,214.52,7.46]
[1758669708365,5.48,214.59,214.52,7.46]
[1758669710567,2.0715914,214.66,214.52,65.2348]
[1758669710866,5.48,214.65,214.55,7.46]
[1758669711064,5.48,214.65,214.58,4.1924]
[1758669711259,43.66,214.65,214.59,7.46]
[1758669712769,6.17220347,214.69,214.59,7.46]
[1758669712968,120.57220347,214.69,214.59,7.46]
[1758669713467,120.57220347,214.69,214.63,4.1914]
[1758669714464,120.57220347,214.69,214.61,11.8319]
[1758669714666,5.46,214.68,214.55,7.64]
[1758669715465,5.46,214.68,214.61,4.1919]
[1758669715770,0.69220347,214.69,214.6,7.64]
[1758669716265,14.29017434,214.74,214.63,7.64]
[1758669716470,114.42,214.74,214.65,7.64]
[1758669716867,5.46,214.75,214.7,7.64]
[1758669717058,5.46,214.75,214.69,4.1902]
[1758669717372,104.43574928,214.76,214.67,7.64]
[1758669717667,104.43574928,214.76,214.72,7.64]
[1758669719967,109.89574928,214.76,214.72,7.64]
[1758669720162,5.46,214.75,214.67,7.64]
[1758669720958,65.1617,214.77,214.61,7.64]
[1758669721173,5.46,214.75,214.61,7.64]
[1758669721368,5.46,214.75,214.65,7.64]
[1758669721765,101.0,214.74,214.65,7.64]
[1758669722975,5.46,214.73,214.65,7.64]
[1758669723673,114.32,214.75,214.65,7.64]
[1758669723869,5.46,214.78,214.67,2.0715914]
[1758669724070,114.34,214.77,214.71,7.64]
[1758669724464,114.34,214.77,214.73,4.1894]
[1758669724673,114.34,214.77,214.69,7.64]
[1758669725863,119.8,214.77,214.69,7.64]
[1758669726279,6.62473842,214.76,214.65,7.64]
[1758669726488,9.6496,214.73,214.65,7.64]
[1758669727274,5.46,214.73,214.61,4.1918]
[1758669727772,65.1543,214.79,214.64,65.1989]
[1758669727773,38.42,214.76,214.64,65.1989]
[1758669727971,38.42,214.76,214.65,7.64]
[1758669728675,42.609,214.76,214.69,4.1902]
[1758669728869,48.069,214.76,214.69,4.1902]
[1758669729273,9.649,214.76,214.69,4.1902]
[1758669729472,5.46,214.76,214.69,4.1902]
[1758669729674,5.46,214.76,214.71,4.1899]
[1758669729874,5.46,214.76,214.71,11.8299]
[1758669731075,5.46,214.78,214.73,11.8296]
[1758669731277,352.3,214.83,214.73,11.8296]
[1758669731278,5.46,214.79,214.73,11.8296]
[1758669731478,5.46,214.77,214.73,7.64]
[1758669731981,114.32,214.8,214.66,65.1924]
[1758669731982,119.78,214.81,214.69,7.64]
[1758669732174,1.16454828,214.8,214.69,7.64]
[1758669732371,1.16454828,214.79,214.71,4.1899]
[1758669732574,6.64454828,214.78,214.71,4.1899]
[1758669732769,5.48,214.78,214.71,4.1899]
[1758669734278,1.16457216,214.77,214.71,4.1899]
[1758669734581,5.48,214.78,214.72,4.1896]
[1758669734985,1.16458033,214.77,214.72,4.1896]
[1758669735173,5.48,214.78,214.72,4.1896]
[1758669735479,6.64458033,214.77,214.72,11.4396]
[1758669735684,5.48,214.77,214.72,11.4396]
[1758669735869,5.48,214.77,214.72,4.1896]
[1758669736076,5.48,214.86,214.77,7.25]
[1758669736375,5.48,214.84,214.68,65.1865]
[1758669736581,5.48,214.79,214.69,7.25]
[1758669736970,5.48,214.79,214.73,4.1896]
[1758669737179,5.48,214.79,214.68,65.186]
[1758669737180,26.5,214.8,214.71,7.25]
[1758669737981,5.48,214.83,214.76,11.4388]
[1758669738781,4.1873,214.85,214.77,4.1887]
[1758669738979,5.48,214.83,214.76,7.25]
[1758669739572,5.48,214.82,214.67,7.25]
[1758669740778,4.1886,214.79,214.71,4.1898]
[1758669740982,4.1886,214.79,214.71,11.4398]
[1758669741381,4.1886,214.79,214.72,4.1896]
[1758669742379,5.48,214.79,214.71,7.25]
[1758669743179,5.48,214.75,214.68,4.1906]
[1758669743683,5.48,214.75,214.67,7.68]
[1758669743684,4.1895,214.74,214.67,7.68]
[1758669744186,5.48,214.75,214.67,7.68]
[1758669745581,5.48,214.75,214.61,7.68]
[1758669745785,4.19,214.71,214.64,4.1911]
[1758669746389,4.19,214.71,214.64,11.8711]
[1758669746789,4.1903,214.7,214.64,7.68]
[1758669746983,4.1903,214.7,214.61,11.8717]
[1758669747183,112.5,214.72,214.61,11.8717]
[1758669747384,4.1907,214.68,214.61,11.8717]
[1758669748377,5.48,214.69,214.61,11.8717]
[1758669750789,4.1907,214.68,214.61,7.68]
[1758669751389,5.48,214.69,214.61,11.8718]
[1758669752283,4.1906,214.68,214.61,11.8718]
[1758669755394,114.9,214.72,214.61,7.68]
[1758669756085,5.48,214.7,214.64,4.1913]
[1758669756288,5.48,214.7,214.61,7.68]
[1758669756486,4.1905,214.69,214.61,7.68]
[1758669756884,73.5322,214.79,214.61,7.68]
[1758669757087,99.86,214.76,214.61,7.68]
[1758669757290,5.48,214.72,214.64,11.8712]
[1758669757886,4.1901,214.71,214.64,11.8712]
[1758669761996,4.1901,214.71,214.65,4.191]
[1758669762594,5.48,214.72,214.67,4.1907]
[1758669762787,5.48,214.72,214.67,11.8707]
[1758669763894,5.48,214.72,214.68,7.68]
[1758669765695,4.1899,214.72,214.68,7.68]
[1758669765998,5.48,214.71,214.64,7.68]
[1758669766393,4.1903,214.7,214.64,7.68]
[1758669766990,5.48,214.71,214.64,11.8711]
[1758669767398,5.48,214.71,214.65,4.191]
[1758669768706,6.80444298,214.71,214.65,4.191]
[1758669769108,10.99454298,214.71,214.65,4.191]
[1758669769511,6.80444298,214.71,214.64,7.68]
[1758669770613,4.1903,214.7,214.64,11.8712]
[1758669772515,4.1905,214.69,214.64,11.8712]
[1758669772703,4.1905,214.69,214.65,7.68]
[1758669772909,4.1905,214.69,214.64,4.1912]
[1758669773409,4.1905,214.69,214.65,7.11]
[1758669773711,6.80444298,214.71,214.65,7.11]
[1758669773712,9.6807,214.68,214.65,7.11]
[1758669776507,4.1907,214.68,214.62,4.1916]
[1758669776914,4.1907,214.68,214.63,7.11]
[1758669777509,4.1907,214.68,214.62,4.1916]
[1758669778115,4.1907,214.68,214.63,7.11]
[1758669778316,4.1907,214.68,214.62,4.1916]
[1758669778813,6.81444298,214.68,214.59,4.1921]
[1758669779914,4.1913,214.65,214.59,4.1921]
[1758669780711,5.49,214.65,214.61,7.11]
[1758669781719,5.49,214.64,214.61,7.11]
[1758669782815,1.32444298,214.62,214.55,11.0263206]
[1758669783014,1.32444298,214.59,214.55,7.11]
[1758669783225,5.49,214.58,214.52,11.0263206]
[1758669783516,5.49,214.58,214.52,15.2199206]
[1758669783713,5.49,214.58,214.52,11.3036]
[1758669784715,5.49,214.63,214.52,7.11]
[1758669784917,1.32444298,214.63,214.54,3.9163206]
[1758669785115,6.81444298,214.66,214.57,7.11]
[1758669785321,1.16509033,214.65,214.57,7.11]
[1758669785522,1.32444298,214.66,214.57,7.11]
[1758669785717,1.16508991,214.65,214.57,7.11]
[1758669785911,1.16508991,214.64,214.57,7.11]
[1758669786117,1.32444298,214.63,214.57,7.11]
[1758669787217,6.65523121,214.62,214.57,7.11]
[1758669787520,5.49,214.62,214.55,7.11]
[1758669787922,1.32444298,214.63,214.56,4.1927]
[1758669788115,1.16523143,214.62,214.55,7.11]
[1758669788318,1.32444298,214.63,214.55,7.11]
[1758669788619,1.16523125,214.62,214.55,7.11]
[1758669788820,1.32444298,214.63,214.55,7.11]
[1758669789020,1.16522667,214.62,214.55,7.11]
[1758669789223,1.32444298,214.63,214.55,7.11]
[1758669789412,1.16522252,214.62,214.55,7.11]
[1758669789715,1.32444298,214.63,214.55,7.11]
[1758669790021,1.16522252,214.62,214.59,7.11]
[1758669790223,1.32444298,214.63,214.59,7.11]
[1758669790424,5.49,214.65,214.59,11.3022]
[1758669790625,1.16516049,214.64,214.6,7.11]
[1758669790923,1.16516049,214.63,214.6,7.11]
[1758669791125,5.49,214.65,214.6,7.11]
[1758669791317,6.65516015,214.64,214.6,7.11]
[1758669791524,6.65516015,214.63,214.59,4.1922]
[1758669791719,4.1913,214.65,214.59,4.1922]
[1758669791916,1.1651607,214.64,214.6,7.11]
[1758669792115,1.1651607,214.63,214.6,7.11]
[1758669792320,5.49,214.64,214.6,7.11]
[1758669792523,1.16516049,214.63,214.6,7.11]
[1758669792724,5.49,214.64,214.6,7.11]